[Event "Live Chess"]
[Site "Chess.com"]
[Date "2023.05.21"]
[Round "-"]
[White "Shepherds_Pie"]
[Black "Driftboard"]
[Result "1-0"]
[WhiteElo "1928"]
[BlackElo "842"]
[TimeControl "300"]
[EndTime "0:37:22 PDT"]
[Termination "Shepherds_Pie won by checkmate"]

1. c4 {[%clk 0:04:57.5]} 1... e5 {[%clk 0:04:58.6]} 2. Nc3 {[%clk 0:04:56.6]}
2... Nf6 {[%clk 0:04:56.7]} 3. Nf3 {[%clk 0:04:54.5]} 3... Nc6 {[%clk
0:04:54.4]} 4. e3 {[%clk 0:04:53.5]} 4... Bb4 {[%clk 0:04:53.8]} 5. Qc2 {[%clk
0:04:52.4]} 5... d6 {[%clk 0:04:52]} 6. Nd5 {[%clk 0:04:50.7]} 6... Bg4 {[%clk
0:04:48.4]} 7. Be2 {[%clk 0:04:45.3]} 7... Bxf3 {[%clk 0:04:46]} 8. Bxf3 {[%clk
0:04:43.6]} 8... O-O {[%clk 0:04:33.6]} 9. a3 {[%clk 0:04:39.4]} 9... Bc5 {[%clk
0:04:28.6]} 10. O-O {[%clk 0:04:34.5]} 10... h6 {[%clk 0:04:05.2]} 11. b4 {[%clk
0:04:32.4]} 11... Bb6 {[%clk 0:03:32.4]} 12. Bb2 {[%clk 0:04:30.1]} 12... a6
{[%clk 0:03:26.9]} 13. Rad1 {[%clk 0:04:27.4]} 13... Re8 {[%clk 0:03:25.9]} 14.
d3 {[%clk 0:04:22.2]} 14... Ne7 {[%clk 0:03:18.1]} 15. Nxf6+ {[%clk 0:04:17.9]}
15... gxf6 {[%clk 0:03:15.7]} 16. d4 {[%clk 0:04:17]} 16... exd4 {[%clk
0:03:14.2]} 17. exd4 {[%clk 0:04:15.5]} 17... c6 {[%clk 0:03:01.5]} 18. d5
{[%clk 0:04:09.1]} 18... cxd5 {[%clk 0:02:58.8]} 19. cxd5 {[%clk 0:04:03.5]}
19... Rc8 {[%clk 0:02:54.6]} 20. Qd2 {[%clk 0:04:01.3]} 20... Nf5 {[%clk
0:02:46.8]} 21. Bg4 {[%clk 0:03:59.3]} 21... Ng3 {[%clk 0:02:26.4]} 22. hxg3
{[%clk 0:03:56.8]} 22... Rc7 {[%clk 0:02:23.6]} 23. Qxh6 {[%clk 0:03:54.4]}
23... f5 {[%clk 0:02:06.4]} 24. Qg7# {[%clk 0:03:52.4]} 1-0

[Event "Live Chess"]
[Site "Chess.com"]
[Date "2023.05.21"]
[Round "-"]
[White "JamesWallman"]
[Black "Mikhail_Golubev"]
[Result "0-1"]
[WhiteElo "757"]
[BlackElo "2472"]
[TimeControl "300"]
[EndTime "0:37:44 PDT"]
[Termination "Mikhail_Golubev won by checkmate"]

1. e4 {[%clk 0:04:56.2]} 1... a6 {[%clk 0:04:59.4]} 2. d4 {[%clk 0:04:53.1]}
2... b5 {[%clk 0:04:58.5]} 3. Nf3 {[%clk 0:04:49.5]} 3... Bb7 {[%clk 0:04:57.5]}
4. Bd3 {[%clk 0:04:37.7]} 4... e6 {[%clk 0:04:53.2]} 5. O-O {[%clk 0:04:34.7]}
5... Nf6 {[%clk 0:04:48.8]} 6. Nc3 {[%clk 0:04:28]} 6... b4 {[%clk 0:04:43.2]}
7. Ne2 {[%clk 0:04:25.9]} 7... Nxe4 {[%clk 0:04:41.2]} 8. Be3 {[%clk 0:04:12.5]}
8... Be7 {[%clk 0:04:29.1]} 9. a3 {[%clk 0:04:06.8]} 9... bxa3 {[%clk
0:04:27.1]} 10. bxa3 {[%clk 0:04:02.2]} 10... O-O {[%clk 0:04:18.9]} 11. h3
{[%clk 0:03:59.3]} 11... c5 {[%clk 0:04:10.4]} 12. Nh2 {[%clk 0:03:48.6]} 12...
Qc7 {[%clk 0:03:57.5]} 13. Ng4 {[%clk 0:03:42.1]} 13... c4 {[%clk 0:03:50.2]}
14. Bxe4 {[%clk 0:03:28.7]} 14... Bxe4 {[%clk 0:03:50.1]} 15. f3 {[%clk
0:03:23.6]} 15... Bg6 {[%clk 0:03:28.1]} 16. Ne5 {[%clk 0:03:13.3]} 16... d6
{[%clk 0:03:21.8]} 17. Nxg6 {[%clk 0:03:10.5]} 17... hxg6 {[%clk 0:03:21.5]} 18.
Kh1 {[%clk 0:03:01]} 18... Nd7 {[%clk 0:03:19.6]} 19. Qe1 {[%clk 0:02:54.9]}
19... Nf6 {[%clk 0:03:11.9]} 20. Qg3 {[%clk 0:02:45.3]} 20... Nd5 {[%clk
0:03:08]} 21. Qf2 {[%clk 0:02:38.5]} 21... Rab8 {[%clk 0:03:05.9]} 22. Nf4
{[%clk 0:02:25]} 22... Nxf4 {[%clk 0:02:58.2]} 23. Bxf4 {[%clk 0:02:22.4]} 23...
Rb2 {[%clk 0:02:44.9]} 24. Rae1 {[%clk 0:02:17.6]} 24... Qc6 {[%clk 0:02:37.5]}
25. Re2 {[%clk 0:02:07.5]} 25... Bf6 {[%clk 0:02:30.6]} 26. Be3 {[%clk
0:02:00.9]} 26... Rfb8 {[%clk 0:02:24]} 27. Rfe1 {[%clk 0:01:47.6]} 27... Rb1
{[%clk 0:02:22.3]} 28. Rxb1 {[%clk 0:01:42.3]} 28... Rxb1+ {[%clk 0:02:19.4]}
29. Kh2 {[%clk 0:01:38.7]} 29... c3 {[%clk 0:02:15.2]} 30. Qg3 {[%clk
0:01:25.2]} 30... Qc4 {[%clk 0:02:06.9]} 31. Rf2 {[%clk 0:01:18.6]} 31... Bxd4
{[%clk 0:01:59.8]} 32. Bxd4 {[%clk 0:01:10.8]} 32... Qxd4 {[%clk 0:01:59.7]} 33.
h4 {[%clk 0:01:01.2]} 33... Re1 {[%clk 0:01:41.9]} 34. h5 {[%clk 0:00:45.5]}
34... gxh5 {[%clk 0:01:35.4]} 35. f4 {[%clk 0:00:35.7]} 35... Qd1 {[%clk
0:01:27.3]} 36. f5 {[%clk 0:00:08.7]} 36... Rh1# {[%clk 0:01:21.6]} 0-1

[Event "Live Chess"]
[Site "Chess.com"]
[Date "2023.05.21"]
[Round "-"]
[White "f4nomore"]
[Black "chessleanstrategist"]
[Result "0-1"]
[WhiteElo "1399"]
[BlackElo "430"]
[TimeControl "300"]
[EndTime "0:38:09 PDT"]
[Termination "chessleanstrategist won on time"]

1. d4 {[%clk 0:04:56.8]} 1... Nf6 {[%clk 0:04:58.1]} 2. Bg5 {[%clk 0:04:53.6]}
2... g6 {[%clk 0:04:55]} 3. Bxf6 {[%clk 0:04:51.3]} 3... exf6 {[%clk 0:04:53.2]}
4. e3 {[%clk 0:04:49.8]} 4... Bg7 {[%clk 0:04:44.7]} 5. Nf3 {[%clk 0:04:48.5]}
5... h6 {[%clk 0:04:38.4]} 6. Be2 {[%clk 0:04:47.1]} 6... O-O {[%clk 0:04:36]}
7. O-O {[%clk 0:04:45.8]} 7... d5 {[%clk 0:04:32.6]} 8. Nc3 {[%clk 0:04:43]}
8... c6 {[%clk 0:04:30.8]} 9. a3 {[%clk 0:04:42]} 9... a5 {[%clk 0:04:28.3]} 10.
Na4 {[%clk 0:04:40.2]} 10... Bg4 {[%clk 0:04:07.9]} 11. Nd2 {[%clk 0:04:34.7]}
11... Bxe2 {[%clk 0:04:04.6]} 12. Qxe2 {[%clk 0:04:33.1]} 12... b5 {[%clk
0:03:57.6]} 13. Nc5 {[%clk 0:04:30.5]} 13... Nd7 {[%clk 0:03:53.3]} 14. Nb7
{[%clk 0:04:18.3]} 14... Qc7 {[%clk 0:03:52.3]} 15. Nc5 {[%clk 0:04:13.5]} 15...
Nxc5 {[%clk 0:03:50.6]} 16. dxc5 {[%clk 0:04:11.9]} 16... Rfe8 {[%clk
0:03:48.1]} 17. c3 {[%clk 0:04:08.7]} 17... Re6 {[%clk 0:03:45.1]} 18. b4 {[%clk
0:04:06.7]} 18... axb4 {[%clk 0:03:38.3]} 19. axb4 {[%clk 0:04:04.9]} 19... Rxa1
{[%clk 0:03:36.4]} 20. Rxa1 {[%clk 0:04:02.3]} 20... Kh7 {[%clk 0:03:16.8]} 21.
g3 {[%clk 0:03:57.2]} 21... f5 {[%clk 0:03:15.7]} 22. Rc1 {[%clk 0:03:45.4]}
22... Qe7 {[%clk 0:03:11.2]} 23. Nf3 {[%clk 0:03:42.8]} 23... f4 {[%clk
0:02:59.2]} 24. gxf4 {[%clk 0:03:38.3]} 24... f5 {[%clk 0:02:58.1]} 25. Nd4
{[%clk 0:03:36.3]} 25... Rf6 {[%clk 0:02:42.5]} 26. Ra1 {[%clk 0:03:31.1]} 26...
g5 {[%clk 0:02:31]} 27. fxg5 {[%clk 0:03:12.7]} 27... hxg5 {[%clk 0:02:29.1]}
28. Ra6 {[%clk 0:03:09.5]} 28... Qb7 {[%clk 0:02:22.5]} 29. Ra1 {[%clk
0:02:59.8]} 29... Qe7 {[%clk 0:02:14]} 30. Qh5+ {[%clk 0:02:50.3]} 30... Bh6
{[%clk 0:01:54]} 31. Qf3 {[%clk 0:02:36.5]} 31... f4 {[%clk 0:01:52.4]} 32. Ra6
{[%clk 0:02:27]} 32... Qb7 {[%clk 0:01:47.7]} 33. Rb6 {[%clk 0:02:23.3]} 33...
Qd7 {[%clk 0:01:32.9]} 34. Qe2 {[%clk 0:02:14.1]} 34... g4 {[%clk 0:01:10.2]}
35. Qd3+ {[%clk 0:02:06.3]} 35... Kg7 {[%clk 0:01:05.4]} 36. Ne2 {[%clk
0:01:17.3]} 36... f3 {[%clk 0:01:04.2]} 37. Ng3 {[%clk 0:01:07.6]} 37... Rf7
{[%clk 0:00:15.6]} 38. Nh5+ {[%clk 0:00:52.8]} 38... Kf8 {[%clk 0:00:11.2]} 39.
Qg6 {[%clk 0:00:34.1]} 39... Bg7 {[%clk 0:00:09.8]} 40. Rb8+ {[%clk 0:00:08.1]}
40... Ke7 {[%clk 0:00:08.8]} 0-1

[Event "Live Chess"]
[Site "Chess.com"]
[Date "2023.05.21"]
[Round "-"]
[White "quantum_void"]
[Black "MaximKris"]
[Result "1-0"]
[WhiteElo "1486"]
[BlackElo "1823"]
[TimeControl "300"]
[EndTime "0:38:14 PDT"]
[Termination "quantum_void won by checkmate"]

1. e4 {[%clk 0:04:55.5]} 1... e5 {[%clk 0:04:54.1]} 2. Nf3 {[%clk 0:04:54.7]}
2... Nc6 {[%clk 0:04:50.8]} 3. Bb5 {[%clk 0:04:52.8]} 3... a6 {[%clk 0:04:48.5]}
4. Ba4 {[%clk 0:04:48.2]} 4... Nf6 {[%clk 0:04:46.9]} 5. O-O {[%clk 0:04:44.7]}
5... Nxe4 {[%clk 0:04:37.9]} 6. Re1 {[%clk 0:04:43.7]} 6... Nc5 {[%clk
0:04:33.4]} 7. Bxc6 {[%clk 0:04:37.9]} 7... dxc6 {[%clk 0:04:31.8]} 8. Nxe5
{[%clk 0:04:36.6]} 8... Be7 {[%clk 0:04:28.3]} 9. Nc3 {[%clk 0:04:33]} 9... O-O
{[%clk 0:04:24.2]} 10. d4 {[%clk 0:04:31.1]} 10... Ne6 {[%clk 0:04:22.4]} 11.
Be3 {[%clk 0:04:28.1]} 11... Bg5 {[%clk 0:04:14.2]} 12. Qf3 {[%clk 0:04:17.8]}
12... Bxe3 {[%clk 0:04:00.4]} 13. fxe3 {[%clk 0:04:16.6]} 13... Qf6 {[%clk
0:03:51.9]} 14. Qxf6 {[%clk 0:04:02.8]} 14... gxf6 {[%clk 0:03:51.8]} 15. Ng4
{[%clk 0:03:52.7]} 15... Kg7 {[%clk 0:03:23.2]} 16. Rf1 {[%clk 0:03:41.1]} 16...
Nxd4 {[%clk 0:02:48.2]} 17. Nxf6 {[%clk 0:03:37.1]} 17... Nxc2 {[%clk
0:02:44.6]} 18. Rac1 {[%clk 0:03:33.5]} 18... Nxe3 {[%clk 0:02:43.5]} 19. Rf2
{[%clk 0:03:30.1]} 19... Ng4 {[%clk 0:02:38.9]} 20. Nxg4 {[%clk 0:03:26.3]}
20... Bxg4 {[%clk 0:02:38.8]} 21. h3 {[%clk 0:03:24.2]} 21... Be6 {[%clk
0:02:20.3]} 22. Rcf1 {[%clk 0:03:23.1]} 22... f6 {[%clk 0:02:15.3]} 23. Rf4
{[%clk 0:03:20.5]} 23... Rad8 {[%clk 0:01:33.1]} 24. R1f2 {[%clk 0:03:18.9]}
24... f5 {[%clk 0:01:17.1]} 25. a3 {[%clk 0:03:15.6]} 25... Rf6 {[%clk
0:01:10.3]} 26. Kh2 {[%clk 0:03:06.7]} 26... Rg6 {[%clk 0:01:03.6]} 27. Na4
{[%clk 0:02:44]} 27... Rd5 {[%clk 0:00:37.3]} 28. Nc3 {[%clk 0:02:36.9]} 28...
Re5 {[%clk 0:00:34.2]} 29. Ne2 {[%clk 0:02:33.2]} 29... Re4 {[%clk 0:00:31.7]}
30. R4f3 {[%clk 0:02:19.9]} 30... Rh4 {[%clk 0:00:28.1]} 31. Ng3 {[%clk
0:02:08.2]} 31... f4 {[%clk 0:00:25.2]} 32. Ne4 {[%clk 0:02:07.1]} 32... Bf5
{[%clk 0:00:14.8]} 33. Nc5 {[%clk 0:02:00]} 33... b6 {[%clk 0:00:13]} 34. Nb3
{[%clk 0:01:58.8]} 34... Be4 {[%clk 0:00:12.2]} 35. Rc3 {[%clk 0:01:56.6]} 35...
f3 {[%clk 0:00:10.3]} 36. g3 {[%clk 0:01:51.7]} 36... Rh5 {[%clk 0:00:05.3]} 37.
Nd4 {[%clk 0:01:48.6]} 37... c5 {[%clk 0:00:03.7]} 38. Nxf3 {[%clk 0:01:44.2]}
38... Bf5 {[%clk 0:00:02.9]} 39. h4 {[%clk 0:01:35.9]} 39... Bg4 {[%clk
0:00:01.1]} 40. Ng5 {[%clk 0:01:31.9]} 40... Bf3 {[%clk 0:00:01]} 41. Nxf3
{[%clk 0:01:30.1]} 41... Rgh6 {[%clk 0:00:00.9]} 42. Rd2 {[%clk 0:01:27.7]}
42... Rxh4+ {[%clk 0:00:00.8]} 43. Nxh4 {[%clk 0:01:26]} 43... Rxh4+ {[%clk
0:00:00.7]} 44. gxh4 {[%clk 0:01:25.2]} 44... Kg8 {[%clk 0:00:00.6]} 45. Rd7
{[%clk 0:01:23.7]} 45... Kh8 {[%clk 0:00:00.5]} 46. Rxc7 {[%clk 0:01:22.7]}
46... h6 {[%clk 0:00:00.4]} 47. Re3 {[%clk 0:01:19.9]} 47... h5 {[%clk
0:00:00.3]} 48. Re8# {[%clk 0:01:18.7]} 1-0

[Event "Live Chess"]
[Site "Chess.com"]
[Date "2023.05.21"]
[Round "-"]
[White "mirandaasilva"]
[Black "tpm07"]
[Result "0-1"]
[WhiteElo "1643"]
[BlackElo "1928"]
[TimeControl "300"]
[EndTime "0:38:29 PDT"]
[Termination "tpm07 won on time"]

1. Nf3 {[%clk 0:04:57.2]} 1... d5 {[%clk 0:04:56.4]} 2. g3 {[%clk 0:04:54.4]}
2... Bg4 {[%clk 0:04:55.7]} 3. d4 {[%clk 0:04:51.2]} 3... Bxf3 {[%clk
0:04:49.8]} 4. exf3 {[%clk 0:04:51.1]} 4... c5 {[%clk 0:04:48.9]} 5. f4 {[%clk
0:04:50]} 5... Nc6 {[%clk 0:04:47.8]} 6. dxc5 {[%clk 0:04:47.1]} 6... e6 {[%clk
0:04:43.8]} 7. Bb5 {[%clk 0:04:44.4]} 7... Bxc5 {[%clk 0:04:42.6]} 8. Bxc6+
{[%clk 0:04:43.1]} 8... bxc6 {[%clk 0:04:40.9]} 9. O-O {[%clk 0:04:41.3]} 9...
Nf6 {[%clk 0:04:40]} 10. Nc3 {[%clk 0:04:19.8]} 10... O-O {[%clk 0:04:37.2]} 11.
Na4 {[%clk 0:04:10]} 11... Bd6 {[%clk 0:04:32.2]} 12. b3 {[%clk 0:04:01.5]}
12... Ne4 {[%clk 0:04:24.2]} 13. Bb2 {[%clk 0:03:55.9]} 13... Be7 {[%clk
0:04:22.6]} 14. f3 {[%clk 0:03:43.1]} 14... Nd6 {[%clk 0:04:17.5]} 15. Qe2
{[%clk 0:03:24]} 15... Nf5 {[%clk 0:04:12.5]} 16. Be5 {[%clk 0:03:12.2]} 16...
c5 {[%clk 0:03:51.8]} 17. Bc3 {[%clk 0:03:00.8]} 17... d4 {[%clk 0:03:43.7]} 18.
Bd2 {[%clk 0:02:59]} 18... Qd7 {[%clk 0:03:21.9]} 19. Rae1 {[%clk 0:02:53.5]}
19... Rfc8 {[%clk 0:03:15.1]} 20. Qc4 {[%clk 0:02:48.5]} 20... Nd6 {[%clk
0:03:01.3]} 21. Qa6 {[%clk 0:02:39.1]} 21... Qb5 {[%clk 0:02:48.9]} 22. Qxb5
{[%clk 0:02:32.4]} 22... Nxb5 {[%clk 0:02:48.8]} 23. h4 {[%clk 0:02:24.4]} 23...
Nc7 {[%clk 0:02:35.6]} 24. Re5 {[%clk 0:02:08.6]} 24... Nd5 {[%clk 0:02:31.4]}
25. Rfe1 {[%clk 0:01:55]} 25... Bf6 {[%clk 0:02:26.3]} 26. R5e2 {[%clk
0:01:46.1]} 26... c4 {[%clk 0:02:16.8]} 27. g4 {[%clk 0:01:25.7]} 27... g6
{[%clk 0:01:50.5]} 28. f5 {[%clk 0:00:49.6]} 28... Bxh4 {[%clk 0:01:47.1]} 29.
fxe6 {[%clk 0:00:32]} 29... Bxe1 {[%clk 0:01:42.6]} 30. exf7+ {[%clk 0:00:31.9]}
30... Kxf7 {[%clk 0:01:40.3]} 31. Bxe1 {[%clk 0:00:28.9]} 31... cxb3 {[%clk
0:01:33.9]} 32. axb3 {[%clk 0:00:26.1]} 32... Re8 {[%clk 0:01:31.4]} 33. Rxe8
{[%clk 0:00:15.8]} 33... Rxe8 {[%clk 0:01:30.7]} 34. Bg3 {[%clk 0:00:14.7]}
34... Ne3 {[%clk 0:01:22.5]} 35. c4 {[%clk 0:00:10.5]} 35... d3 {[%clk
0:01:14.7]} 36. Nc3 {[%clk 0:00:08.7]} 36... d2 {[%clk 0:01:11.6]} 37. Bf2
{[%clk 0:00:03.7]} 37... d1=Q+ {[%clk 0:01:08.9]} 38. Nxd1 {[%clk 0:00:03.6]}
38... Nxd1 {[%clk 0:01:08.4]} 39. Bxa7 {[%clk 0:00:03.5]} 39... Nb2 {[%clk
0:01:01.5]} 40. Kg2 {[%clk 0:00:02.4]} 40... Ra8 {[%clk 0:00:53.9]} 41. Bb6
{[%clk 0:00:00.9]} 41... Rb8 {[%clk 0:00:46]} 42. c5 {[%clk 0:00:00.8]} 42...
Nd3 {[%clk 0:00:43.6]} 43. Kh3 {[%clk 0:00:00.7]} 43... Ne5 {[%clk 0:00:37.1]}
0-1

[Event "Live Chess"]
[Site "Chess.com"]
[Date "2023.05.21"]
[Round "-"]
[White "JoeRoot66"]
[Black "Tiltador"]
[Result "1-0"]
[WhiteElo "1924"]
[BlackElo "761"]
[TimeControl "300"]
[EndTime "0:38:47 PDT"]
[Termination "JoeRoot66 won by checkmate"]

1. e4 {[%clk 0:04:59.8]} 1... e5 {[%clk 0:04:58.6]} 2. Nc3 {[%clk 0:04:59]} 2...
d6 {[%clk 0:04:57.2]} 3. Bc4 {[%clk 0:04:58.5]} 3... Be6 {[%clk 0:04:52.6]} 4.
Bxe6 {[%clk 0:04:57.8]} 4... fxe6 {[%clk 0:04:51.5]} 5. f4 {[%clk 0:04:57.7]}
5... exf4 {[%clk 0:04:49.4]} 6. Nf3 {[%clk 0:04:56.5]} 6... e5 {[%clk
0:04:48.1]} 7. d4 {[%clk 0:04:55.6]} 7... exd4 {[%clk 0:04:32.3]} 8. Qxd4 {[%clk
0:04:52.3]} 8... Nc6 {[%clk 0:04:29.9]} 9. Qa4 {[%clk 0:04:50]} 9... Ne7 {[%clk
0:04:18.4]} 10. Bxf4 {[%clk 0:04:49.1]} 10... g6 {[%clk 0:04:16]} 11. O-O {[%clk
0:04:47.2]} 11... Bg7 {[%clk 0:04:14.7]} 12. e5 {[%clk 0:04:46.6]} 12... dxe5
{[%clk 0:04:11.2]} 13. Nxe5 {[%clk 0:04:46]} 13... O-O {[%clk 0:03:59.6]} 14.
Qb3+ {[%clk 0:04:41.6]} 14... Kh8 {[%clk 0:03:55.7]} 15. Nf7+ {[%clk 0:04:38.6]}
15... Rxf7 {[%clk 0:03:52.4]} 16. Qxf7 {[%clk 0:04:38.5]} 16... Qf8 {[%clk
0:03:48.9]} 17. Qe6 {[%clk 0:04:30.3]} 17... Nd4 {[%clk 0:03:38.8]} 18. Qe4
{[%clk 0:04:25.6]} 18... c6 {[%clk 0:03:20.7]} 19. Be5 {[%clk 0:04:21.3]} 19...
Qg8 {[%clk 0:03:06.3]} 20. Qxd4 {[%clk 0:04:16.8]} 20... Nf5 {[%clk 0:02:55.2]}
21. Bxg7+ {[%clk 0:04:15.7]} 21... Qxg7 {[%clk 0:02:50.9]} 22. Qxg7+ {[%clk
0:04:13.3]} 22... Nxg7 {[%clk 0:02:47.8]} 23. Rf7 {[%clk 0:04:11.7]} 23... Rb8
{[%clk 0:02:41.7]} 24. Re1 {[%clk 0:04:10.2]} 24... Nf5 {[%clk 0:02:38.4]} 25.
g4 {[%clk 0:04:08.5]} 25... Nh4 {[%clk 0:02:30.4]} 26. Ree7 {[%clk 0:04:06.2]}
26... a6 {[%clk 0:02:17.8]} 27. Rxh7+ {[%clk 0:04:04.7]} 27... Kg8 {[%clk
0:02:13.2]} 28. Rxh4 {[%clk 0:04:04.6]} 28... b5 {[%clk 0:02:09.8]} 29. Ne4
{[%clk 0:04:03.7]} 29... Rd8 {[%clk 0:01:57.6]} 30. Nf6+ {[%clk 0:04:02.4]}
30... Kf8 {[%clk 0:01:53.9]} 31. Ra7 {[%clk 0:03:57.9]} 31... Rd1+ {[%clk
0:01:51.7]} 32. Kf2 {[%clk 0:03:57.1]} 32... Rd2+ {[%clk 0:01:49.6]} 33. Ke3
{[%clk 0:03:56.8]} 33... Rxc2 {[%clk 0:01:48.4]} 34. Rh8# {[%clk 0:03:55.7]} 1-0

[Event "Live Chess"]
[Site "Chess.com"]
[Date "2023.05.21"]
[Round "-"]
[White "chessfiction"]
[Black "EdenHazard8"]
[Result "1-0"]
[WhiteElo "2355"]
[BlackElo "1959"]
[TimeControl "300"]
[EndTime "0:38:57 PDT"]
[Termination "chessfiction won by resignation"]

1. e4 {[%clk 0:04:59.9]} 1... c6 {[%clk 0:04:58.3]} 2. d4 {[%clk 0:04:56]} 2...
d5 {[%clk 0:04:58.2]} 3. Nc3 {[%clk 0:04:54.5]} 3... dxe4 {[%clk 0:04:53]} 4. f3
{[%clk 0:04:54]} 4... Nf6 {[%clk 0:04:52.9]} 5. fxe4 {[%clk 0:04:52.8]} 5... e5
{[%clk 0:04:51.3]} 6. Nf3 {[%clk 0:04:47.7]} 6... exd4 {[%clk 0:04:49.8]} 7.
Qxd4 {[%clk 0:04:45.1]} 7... Qxd4 {[%clk 0:04:48.1]} 8. Nxd4 {[%clk 0:04:45]}
8... Bc5 {[%clk 0:04:47.2]} 9. Nb3 {[%clk 0:04:43.8]} 9... Bb6 {[%clk
0:04:44.3]} 10. Bg5 {[%clk 0:04:42.7]} 10... O-O {[%clk 0:04:41.8]} 11. Bxf6
{[%clk 0:04:41.8]} 11... gxf6 {[%clk 0:04:41.7]} 12. O-O-O {[%clk 0:04:40.7]}
12... Be6 {[%clk 0:04:38.3]} 13. Nd4 {[%clk 0:04:39.1]} 13... Na6 {[%clk
0:04:35.5]} 14. Nxe6 {[%clk 0:04:38.4]} 14... fxe6 {[%clk 0:04:34.4]} 15. Bc4
{[%clk 0:04:38]} 15... Nc7 {[%clk 0:04:32.2]} 16. Rd7 {[%clk 0:04:36.9]} 16...
Rad8 {[%clk 0:04:30]} 17. Rhd1 {[%clk 0:04:36]} 17... Rxd7 {[%clk 0:04:28.1]}
18. Rxd7 {[%clk 0:04:35.9]} 18... Rf7 {[%clk 0:04:26.1]} 19. Rxc7 {[%clk
0:04:29.9]} 19... Rxc7 {[%clk 0:04:26]} 20. Bxe6+ {[%clk 0:04:28.9]} 20... Kg7
{[%clk 0:04:24.2]} 21. Kd2 {[%clk 0:04:17.1]} 21... Re7 {[%clk 0:04:18.4]} 22.
Bf5 {[%clk 0:04:13.3]} 22... Re8 {[%clk 0:04:15.9]} 23. Ne2 {[%clk 0:04:05.7]}
23... Rd8+ {[%clk 0:04:13.1]} 24. Ke1 {[%clk 0:04:03.6]} 24... Bc7 {[%clk
0:04:13]} 25. g3 {[%clk 0:03:58.7]} 25... Be5 {[%clk 0:04:03.4]} 26. c3 {[%clk
0:03:58.1]} 26... Rb8 {[%clk 0:04:01.5]} 27. Kf2 {[%clk 0:03:55.8]} 27... Rd8
{[%clk 0:03:59.8]} 28. Ke1 {[%clk 0:03:53.4]} 28... b5 {[%clk 0:03:57.3]} 29.
Ng1 {[%clk 0:03:39.5]} 29... b4 {[%clk 0:03:54.2]} 30. cxb4 {[%clk 0:03:36.5]}
30... Bxb2 {[%clk 0:03:52.2]} 31. Nf3 {[%clk 0:03:35.1]} 31... Bc3+ {[%clk
0:03:48.2]} 32. Ke2 {[%clk 0:03:34.6]} 32... Bxb4 {[%clk 0:03:48.1]} 33. Nh4
{[%clk 0:03:30.1]} 33... Rd2+ {[%clk 0:03:46.7]} 34. Kf3 {[%clk 0:03:29.4]}
34... c5 {[%clk 0:03:44.7]} 35. Be6 {[%clk 0:03:28.2]} 35... c4 {[%clk
0:03:39.9]} 36. Bxc4 {[%clk 0:03:25.2]} 36... Rxh2 {[%clk 0:03:35.8]} 37. Nf5+
{[%clk 0:03:23.4]} 37... Kf8 {[%clk 0:03:34.5]} 38. Nd4 {[%clk 0:03:20.8]} 38...
Rc2 {[%clk 0:03:31]} 39. Bb3 {[%clk 0:03:17.7]} 39... Rc3+ {[%clk 0:03:29]} 40.
Kg4 {[%clk 0:03:14.4]} 40... Bd6 {[%clk 0:03:25.9]} 41. Kf5 {[%clk 0:03:07.9]}
41... Rxg3 {[%clk 0:03:12.5]} 42. Kxf6 {[%clk 0:03:04.1]} 42... h5 {[%clk
0:03:03.8]} 43. Nf5 {[%clk 0:03:00.2]} 43... Rf3 {[%clk 0:03:02.5]} 44. Kg6
{[%clk 0:02:55.6]} 44... Be5 {[%clk 0:02:56.8]} 45. Kxh5 {[%clk 0:02:53.4]}
45... Rf4 {[%clk 0:02:55.2]} 46. Bd5 {[%clk 0:02:50.9]} 46... Ke8 {[%clk
0:02:46.6]} 47. Kg5 {[%clk 0:02:47.5]} 47... a5 {[%clk 0:02:44]} 48. Ng7+ {[%clk
0:02:40.8]} 48... Kd8 {[%clk 0:02:39.1]} 49. Ne6+ {[%clk 0:02:40.1]} 1-0

[Event "Live Chess"]
[Site "Chess.com"]
[Date "2023.05.21"]
[Round "-"]
[White "diana21strabt"]
[Black "JohanKjeldahl"]
[Result "1/2-1/2"]
[WhiteElo "1716"]
[BlackElo "1888"]
[TimeControl "300"]
[EndTime "0:39:10 PDT"]
[Termination "Game drawn by agreement"]

1. e4 {[%clk 0:04:59.1]} 1... c5 {[%clk 0:04:57.8]} 2. Nf3 {[%clk 0:04:58]} 2...
e6 {[%clk 0:04:56.3]} 3. d4 {[%clk 0:04:55.9]} 3... cxd4 {[%clk 0:04:55.4]} 4.
Nxd4 {[%clk 0:04:55.3]} 4... Nc6 {[%clk 0:04:54.4]} 5. Nc3 {[%clk 0:04:54.2]}
5... Qc7 {[%clk 0:04:52.8]} 6. Ndb5 {[%clk 0:04:52.8]} 6... Qb8 {[%clk
0:04:51.3]} 7. g3 {[%clk 0:04:49.2]} 7... a6 {[%clk 0:04:50]} 8. Nd4 {[%clk
0:04:47.8]} 8... Nf6 {[%clk 0:04:45.3]} 9. Nxc6 {[%clk 0:04:43.9]} 9... dxc6
{[%clk 0:04:42.5]} 10. Bf4 {[%clk 0:04:42.4]} 10... e5 {[%clk 0:04:41.1]} 11.
Bg5 {[%clk 0:04:41.3]} 11... Be7 {[%clk 0:04:39.2]} 12. Bg2 {[%clk 0:04:31.2]}
12... O-O {[%clk 0:04:37.4]} 13. O-O {[%clk 0:04:29.6]} 13... Be6 {[%clk
0:04:36.1]} 14. Ne2 {[%clk 0:04:17.9]} 14... b5 {[%clk 0:04:32.9]} 15. f4 {[%clk
0:04:16.4]} 15... Qb6+ {[%clk 0:04:28.6]} 16. Kh1 {[%clk 0:04:13.2]} 16... Rad8
{[%clk 0:04:26.4]} 17. Qe1 {[%clk 0:04:10]} 17... h6 {[%clk 0:04:22.1]} 18. Bxf6
{[%clk 0:04:08.4]} 18... Bxf6 {[%clk 0:04:20.9]} 19. f5 {[%clk 0:04:07.4]} 19...
Bc4 {[%clk 0:04:19]} 20. b3 {[%clk 0:04:03.6]} 20... Bxe2 {[%clk 0:04:15]} 21.
Qxe2 {[%clk 0:04:01.9]} 21... Rd6 {[%clk 0:04:09.6]} 22. Rad1 {[%clk 0:03:58]}
22... Rfd8 {[%clk 0:04:07.9]} 23. Rxd6 {[%clk 0:03:55.9]} 23... Rxd6 {[%clk
0:04:06.6]} 24. Qf2 {[%clk 0:03:38.6]} 24... Qxf2 {[%clk 0:04:01.2]} 25. Rxf2
{[%clk 0:03:37.5]} 25... Rd1+ {[%clk 0:03:59.7]} 26. Bf1 {[%clk 0:03:36]} 26...
Bg5 {[%clk 0:03:54.3]} 27. Kg2 {[%clk 0:03:34]} 27... Kf8 {[%clk 0:03:50.9]} 28.
c4 {[%clk 0:03:31.2]} 28... Ke7 {[%clk 0:03:48.8]} 29. cxb5 {[%clk 0:03:29.8]}
29... cxb5 {[%clk 0:03:42.9]} 30. a4 {[%clk 0:03:28.5]} 30... bxa4 {[%clk
0:03:37.1]} 31. bxa4 {[%clk 0:03:23.4]} 31... a5 {[%clk 0:03:33.6]} 32. Rb2
{[%clk 0:03:19.3]} 32... Rd4 {[%clk 0:03:23.1]} 33. Rb7+ {[%clk 0:03:10.3]}
33... Rd7 {[%clk 0:03:18]} 34. Rxd7+ {[%clk 0:03:06.2]} 34... Kxd7 {[%clk
0:03:15.1]} 35. h4 {[%clk 0:03:05.1]} 35... Bd2 {[%clk 0:03:10.8]} 36. g4 {[%clk
0:03:03.1]} 36... f6 {[%clk 0:03:08.3]} 37. Kf3 {[%clk 0:03:01.8]} 37... Kd6
{[%clk 0:03:07.1]} 38. Bb5 {[%clk 0:02:59.8]} 38... Kc5 {[%clk 0:03:05.3]}
1/2-1/2